fUST/lending_fUST_20251114
["ID","MTS","AMOUNT","RATE_DAILY","PERIOD"]
[393954220,1763128048862,-150.4,0.00045136,120]
[393954221,1763128048928,-2704.682651,0.00045205,120]
[393954222,1763128048995,-150.4,0.00045236,120]
[393954223,1763128049062,-153.0,0.0004525,30]
[393954224,1763128049125,-153.0,0.0004525,30]
[393954225,1763128049192,-153.0,0.0004525,30]
[393954226,1763128049272,-153.0,0.0004525,30]
[393954227,1763128049349,-153.0,0.0004525,30]
[393954228,1763128049423,-150.4,0.00045336,120]
[393954229,1763128049488,-500.0,0.00045375,60]
[393954230,1763128049562,-150.4,0.00045436,120]
[393954231,1763128049633,-160.0,0.000455,120]
[393954232,1763128049698,-153.0,0.00045524,30]
[393954233,1763128049763,-153.0,0.00045524,30]
[393954234,1763128049839,-153.0,0.00045524,30]
[393954235,1763128049914,-153.0,0.00045524,30]
[393954236,1763128049981,-153.0,0.00045524,30]
[393954237,1763128050047,-153.0,0.00045524,30]
[393954238,1763128050117,-153.0,0.00045524,30]
[393954239,1763128050185,-153.0,0.00045524,30]
[393954240,1763128050251,-153.0,0.00045524,30]
[393954241,1763128050321,-205.5502534,0.00045524,30]
[393954242,1763128050393,-150.4,0.00045536,120]
[393954243,1763128050458,-150.4,0.00045636,120]
[393954244,1763128050518,-150.4,0.00045736,120]
[393954245,1763128050580,-328.9797356,0.00045789,30]
[393954246,1763128050722,-602.0216968,0.00045789,30]
[393954247,1763128050800,-191.2434578,0.00045789,30]
[393954248,1763128050884,-191.2434578,0.00045789,30]
[393954249,1763128050957,-191.2434578,0.00045789,30]
[393954250,1763128051032,-191.2434578,0.00045789,30]
[393954251,1763128051101,-191.2434578,0.00045789,30]
[393954252,1763128051170,-150.4,0.00045836,120]
[393954253,1763128051237,-390.45068633,0.000459,120]
[393954254,1763128051308,-150.4,0.00045936,120]
[393954255,1763128051370,-190.0,0.00045946,60]
[393954256,1763128051431,-600.0,0.0004596,60]
[393954257,1763128051491,-151.0,0.00045972,120]
[393954258,1763128051553,-217.977696,0.00045972,120]
[393954259,1763128051613,-184.84,0.00046,30]
[393954260,1763128051680,-999.0,0.00046,120]
[393954261,1763128051752,-733.91063201,0.00046005,120]
[393954262,1763128051824,-150.4,0.00046036,120]
[393954263,1763128051904,-608.76377502,0.00046063,120]
[393954264,1763128051979,-154.9707659,0.00046071,30]
[393954265,1763128052054,-153.0,0.00046071,30]
[393954266,1763128052126,-153.0,0.00046071,30]
[393954267,1763128052201,-153.0,0.00046071,30]
[393954268,1763128052272,-153.0,0.00046071,30]
[393954269,1763128052338,-153.0,0.00046071,30]
[393954270,1763128052400,-153.0,0.00046071,30]
[393954271,1763128052464,-153.0,0.00046071,30]
[393954272,1763128052525,-153.0,0.00046071,30]
[393954273,1763128052592,-153.0,0.00046071,30]
[393954274,1763128052657,-153.0,0.00046071,30]
[393954275,1763128052735,-150.4,0.00046136,120]
[393954276,1763128052822,-150.4,0.00046236,120]
[393954277,1763128052901,-200.0,0.00046271,120]
[393954278,1763128052982,-150.4,0.00046336,120]
[393954279,1763128053064,-151.12994166,0.00046436,120]
[393954280,1763128053139,-999.0,0.00046575,120]
[393954281,1763128053210,-593.4565077,0.00046607,30]
[393954282,1763128053285,-200.0,0.00046804,120]
[393954283,1763128053369,-600.0,0.00047056,60]
[393954284,1763128053443,-327.0,0.00047121,90]
[393954285,1763128053595,-259.0,0.0004734,74]
[393954286,1763128053671,-164.2237678,0.00047429,30]
[393954287,1763128053743,-164.2237678,0.00047429,30]
[393954288,1763128053832,-164.2237678,0.00047429,30]
[393954289,1763128053941,-164.2237678,0.00047429,30]
[393954290,1763128054026,-164.2237678,0.00047429,30]
[393954291,1763128054099,-311.9080489,0.00047429,30]
[393954292,1763128054165,-593.4565077,0.00047429,30]
[393954293,1763128054231,-593.4565077,0.00047429,30]
[393954294,1763128054300,-593.4565077,0.00047429,30]
[393954295,1763128054363,-593.4565077,0.00047429,30]
[393954296,1763128054425,-300.3678215,0.00047429,30]
[393954297,1763128054487,-191.2434578,0.00047429,30]
[393954298,1763128054548,-300.3678215,0.00047429,30]
[393954299,1763128054610,-191.2434578,0.00047429,30]
[393954300,1763128054671,-191.2434578,0.00047429,30]
[393954301,1763128054735,-300.3678215,0.00047429,30]
[393954302,1763128054800,-300.3678215,0.00047429,30]
[393954303,1763128054868,-191.2434578,0.00047429,30]
[393954304,1763128054942,-300.3678215,0.00047429,30]
[393954305,1763128055017,-191.2434578,0.00047429,30]
[393954306,1763128055093,-191.2434578,0.00047429,30]
[393954307,1763128055166,-300.3678215,0.00047429,30]
[393954308,1763128055237,-191.2434578,0.00047429,30]
[393954309,1763128055309,-300.3678215,0.00047429,30]
[393954310,1763128055378,-191.2434578,0.00047429,30]
[393954311,1763128055445,-300.3678215,0.00047429,30]
[393954312,1763128055511,-300.3678215,0.00047429,30]
[393954313,1763128055580,-191.2434578,0.00047429,30]
[393954314,1763128055652,-300.3678215,0.00047429,30]
[393954315,1763128055727,-191.2434578,0.00047429,30]
[393954316,1763128055800,-300.3678215,0.00047429,30]
[393954317,1763128055877,-300.3678215,0.00047429,30]
[393954318,1763128055955,-191.2434578,0.00047429,30]
[393954319,1763128056025,-300.3678215,0.00047429,30]
[393954320,1763128056088,-191.2434578,0.00047429,30]
[393954321,1763128056154,-300.3678215,0.00047429,30]
[393954322,1763128056305,-300.3678215,0.00047429,30]
[393954323,1763128056373,-191.2434578,0.00047429,30]
[393954324,1763128056443,-300.3678215,0.00047429,30]
[393954325,1763128056511,-191.2434578,0.00047429,30]
[393954326,1763128056576,-300.3678215,0.00047429,30]
[393954327,1763128056640,-300.3678215,0.00047429,30]
[393954328,1763128056703,-191.2434578,0.00047429,30]
[393954329,1763128056767,-300.3678215,0.00047429,30]
[393954330,1763128056839,-300.3678215,0.00047429,30]
[393954331,1763128056916,-191.2434578,0.00047429,30]
[393954332,1763128056989,-191.2434578,0.00047429,30]
[393954333,1763128057061,-300.3678215,0.00047429,30]
[393954334,1763128057130,-191.2434578,0.00047429,30]
[393954335,1763128057198,-191.2434578,0.00047429,30]
[393954336,1763128057266,-191.2434578,0.00047429,30]
[393954337,1763128057340,-191.2434578,0.00047429,30]
[393954338,1763128057409,-191.2434578,0.00047429,30]
[393954339,1763128057477,-191.2434578,0.00047429,30]
[393954340,1763128057542,-191.2434578,0.00047429,30]
[393954341,1763128057608,-191.2434578,0.00047429,30]
[393954342,1763128057675,-191.2434578,0.00047429,30]
[393954343,1763128057742,-191.2434578,0.00047429,30]
[393954344,1763128057815,-191.2434578,0.00047429,30]
[393954345,1763128057889,-191.2434578,0.00047429,30]
[393954346,1763128057961,-191.2434578,0.00047429,30]
[393954347,1763128058031,-191.2434578,0.00047429,30]
[393954348,1763128058102,-191.2434578,0.00047429,30]
[393954349,1763128058176,-191.2434578,0.00047429,30]
[393954350,1763128058249,-191.2434578,0.00047429,30]
[393954351,1763128058318,-191.2434578,0.00047429,30]
[393954352,1763128058384,-380.6419994,0.00047429,30]
[393954353,1763128058452,-336.541438,0.00047436,60]
[393954354,1763128058518,-22000.0,0.00047671,12]
[393954355,1763128058583,-153.5,0.00047671,120]
[393954356,1763128058648,-22000.0,0.00047679,12]
[393954357,1763128058714,-22000.0,0.00047688,12]
[393954358,1763128058853,-22000.0,0.00047697,12]
[393954359,1763128058930,-22000.0,0.00047697,12]
[393954360,1763128059007,-507.09785488,0.00047724,60]
[393954361,1763128059082,-151.0,0.0004795,120]
[393954362,1763128059162,-1000.0,0.00047983,90]
[393954363,1763128059237,-1000.0,0.00047983,90]
[393954364,1763128059310,-15245.84923282,0.00048,30]
[393954365,1763128059382,-778.24080441,0.00048005,120]
[393954366,1763128059453,-525.0,0.00048044,90]
[393954367,1763128059520,-600.0,0.00048152,60]
[393954368,1763128059585,-2480.61070281,0.000482,120]
[393954369,1763128059651,-165.19145869,0.00048521,30]
[393954370,1763128059722,-336.541438,0.0004869,10]
[393954371,1763128059793,-160.202571,0.0004869,10]
[393954372,1763128059867,-165.19145869,0.00049041,30]
[393954373,1763128059941,-518.0,0.00049215,90]
[393954374,1763128060013,-600.0,0.00049248,60]
[393954375,1763128060092,-999.0,0.00049315,120]
[393954376,1763128060164,-151.0,0.00049315,120]
[393954377,1763128060237,-151.0,0.00049315,120]
[393954378,1763128060308,-151.0,0.00049315,120]
[393954379,1763128060377,-151.0,0.00049315,120]
[393954380,1763128060444,-151.0,0.00049315,120]
[393954381,1763128060510,-151.0,0.00049315,120]
[393954382,1763128060575,-151.0,0.00049315,120]
[393954383,1763128060637,-151.0,0.00049315,120]
[393954384,1763128060703,-151.0,0.00049315,120]
[393954385,1763128060778,-151.0,0.00049315,120]
[393954386,1763128060858,-151.0,0.00049315,120]
[393954387,1763128060943,-151.0,0.00049315,120]
[393954388,1763128061016,-151.0,0.00049315,120]
[393954389,1763128061084,-151.0,0.00049315,120]
[393954390,1763128061148,-151.0,0.00049315,120]
[393954391,1763128061210,-151.0,0.00049315,120]
[393954392,1763128061332,-151.0,0.00049315,120]
[393954393,1763128061401,-179.226623,0.00049315,120]
[393954394,1763128061465,-165.19145869,0.00049562,30]
[393954395,1763128061529,-336.541438,0.0004997,120]
[393954396,1763128061599,-72616.48,0.0004998,7]
[393954397,1763128061661,-534.22944561,0.0005,10]
[393954398,1763128061729,-552.16136488,0.0005,120]
[393954399,1763128061802,-996.2031998,0.0005,60]
[393954400,1763128061879,-1864.0,0.0005,120]
[393954401,1763128061958,-200.0,0.0005,120]
[393954402,1763128062031,-250.0,0.0005,7]
[393954403,1763128062108,-15420.68025303,0.0005,120]
[393954404,1763128062182,-785068.86360582,0.0005,120]
[393954405,1763128062251,-41328.28931445,0.0005,120]
[393954406,1763128062319,-822.57097682,0.00050005,120]
[393954407,1763128062387,-200.0,0.00050052,120]
[393954408,1763128062452,-200.0,0.00050052,120]
[393954409,1763128062516,-200.0,0.00050052,120]
[393954410,1763128062582,-165.19145869,0.00050055,30]
[393954411,1763128062646,-325.0,0.00050262,120]
[393954412,1763128062712,-600.0,0.00050344,60]
[393954413,1763128062787,-165.19145869,0.00050575,30]
[393954414,1763128062863,-160.0,0.000507,120]
[393954415,1763128062942,-167.48,0.00050746,30]
[393954416,1763128063016,-3000.0,0.00051,85]
[393954417,1763128063088,-1701.23,0.00051,14]
[393954418,1763128063158,-3000.0,0.0005101,85]
[393954419,1763128063230,-3000.0,0.0005102,85]
[393954420,1763128063303,-3000.0,0.0005103,85]
[393954421,1763128063368,-3000.0,0.0005104,85]
[393954422,1763128063428,-3000.0,0.0005105,85]
[393954423,1763128063490,-3000.0,0.0005106,85]
[393954424,1763128063551,-3000.0,0.0005107,85]
[393954425,1763128063676,-3006.12511,0.0005108,85]
[393954426,1763128063749,-165.19145869,0.00051096,30]
[393954427,1763128063821,-11252.98250066,0.00051331,28]
[393954428,1763128063890,-200.0,0.00051386,120]
[393954429,1763128063963,-600.0,0.0005144,60]
[393954430,1763128064042,-260.444,0.00051811,94]
[393954431,1763128064117,-300.27,0.00051945,120]
[393954432,1763128064187,-866.90114922,0.00052005,120]
[393954433,1763128064259,-999.0,0.00052054,120]
[393954434,1763128064695,225.18697532,0.00043219,30]
[393954435,1763128064793,151.0,0.0003301,31]
[393954436,1763128064969,233.51889341,0.00043219,30]
[393954437,1763128065066,1000.0,0.00046,120]
[393954438,1763128065330,242.15909246,0.00043219,30]
[393954439,1763128065476,251.11897888,0.00043219,30]
[393954440,1763128065712,260.4103811,0.00043219,30]
[393954441,1763128065810,270.0455652,0.00043219,30]
[393954442,1763128066992,280.03725112,0.00043219,30]
[393954443,1763128067396,315.60771,0.000296,7]
[393954444,1763128067498,290.39862941,0.00043219,30]
[393954445,1763128067568,315.60771,0.0003301,31]
[393954446,1763128067699,301.1433787,0.00043219,30]
[393954447,1763128067786,315.60771,0.0003953,120]
[393954448,1763128067908,315.60771,0.0003953,120]
[393954449,1763128068009,315.60771,0.0003953,120]
[393954450,1763128068089,315.60771,0.000296,7]
[393954451,1763128068172,315.60771,0.0003301,31]
[393954452,1763128068261,315.60771,0.0003953,120]
[393954453,1763128068340,627.74,0.00023979,10]
[393954454,1763128068482,315.60771,0.0003953,120]
[393954455,1763128068585,315.60771,0.0003953,120]
[393954456,1763128068709,315.60771,0.000296,7]
[393954457,1763128068792,315.60771,0.0003301,31]
[393954458,1763128068879,315.60771,0.0003953,120]
[393954459,1763128068984,315.60771,0.0003953,120]
[393954460,1763128069088,315.60771,0.0003953,120]
[393954461,1763128069183,315.60771,0.000296,7]
[393954462,1763128069289,942.0,0.00019,2]
[393954471,1763128111082,409.027755,0.00013699,2]
[393954472,1763128111366,409.027755,0.00020187,2]
[393954759,1763128233282,-240.43717317,0.00023052,2]
[393954760,1763128233291,-655.24205013,0.00023152,2]
[393954761,1763128233302,-507.75794987,0.00023152,2]
[393954762,1763128233311,-1.14725013,0.00023152,2]
[393954763,1763128233364,-339.95875117,0.00023152,2]
[393954764,1763128233374,-300.0,0.00023324,2]
[393954765,1763128233383,-944.88430814,0.00023325,2]
[393954766,1763128233409,-14124.15121686,0.00023325,2]
[393954767,1763128233419,-300.0,0.0002379,20]
[393954768,1763128233428,-300.0,0.0002379,20]
[393954769,1763128233438,-300.0,0.0002379,20]
[393954770,1763128233447,-300.0,0.0002379,20]
[393954771,1763128233456,-300.0,0.0002379,20]
[393954772,1763128233466,-300.0,0.0002379,20]
[393954773,1763128233475,-300.0,0.0002379,20]
[393954774,1763128233484,-300.0,0.0002379,20]
[393954775,1763128233494,-300.0,0.0002379,20]
[393954776,1763128233503,-300.0,0.0002379,20]
[393954777,1763128233514,-300.0,0.0002379,20]
[393954778,1763128233523,-300.0,0.0002379,20]
[393954779,1763128233533,-300.0,0.0002379,20]
[393954780,1763128233542,-300.0,0.0002379,20]
[393954781,1763128233551,-300.0,0.0002379,20]
[393954782,1763128233560,-44925.18198421,0.0002379,2]
[393954783,1763128233569,-8439.7368755,0.00023793,2]
[393954784,1763128233578,-2066.35329753,0.00023803,2]
[393954785,1763128233587,-523.12,0.00023893,10]
[393954786,1763128233596,-435.93,0.00023893,10]
[393954787,1763128233606,-363.27,0.00023893,10]
[393954788,1763128233615,-302.73,0.00023893,10]
[393954789,1763128233624,-305.68083636,0.00023902,2]
[393954790,1763128233633,-284.13403912,0.00023902,2]
[393954791,1763128233644,-500.0,0.00023902,2]
[393954792,1763128233653,-500.0,0.00023902,2]
[393954793,1763128233662,-571.86212229,0.00023902,2]
[393954794,1763128233671,-500.0,0.00023902,2]
[393954795,1763128233681,-500.0,0.00023902,2]
[393954796,1763128233690,-633.72526947,0.00023902,2]
[393954797,1763128233699,-500.0,0.00023902,2]
[393954798,1763128233709,-500.0,0.00023904,2]
[393954799,1763128233718,-500.0,0.00023973,2]
[393954800,1763128233727,-500.84806108,0.00023973,2]
[393954801,1763128233736,-388.6842988,0.00023988,2]
[393954802,1763128233745,-25556.38873407,0.0002399,2]
[393954824,1763128238388,-500.0,0.00023902,2]
[393954825,1763128238398,-500.0,0.00023902,2]
[393954826,1763128238407,-500.0,0.00023902,2]
[393954827,1763128238418,-3964.2144558,0.0002399,2]
[393954828,1763128238428,-1849.54,0.00024,7]
[393954829,1763128238438,-160.41,0.00024,7]
[393954830,1763128238447,-184.89,0.00024,14]
[393954831,1763128238457,-500.0,0.00024141,2]
[393954832,1763128238466,-500.0,0.00024141,2]
[393954833,1763128238476,-431.57340506,0.00024173,2]
[393954834,1763128238486,-501.17308663,0.00024173,2]
[393954835,1763128238495,-501.1549955,0.00024173,2]
[393954836,1763128238505,-500.0,0.00024173,2]
[393954837,1763128238519,-466.04735602,0.00024173,2]
[393954838,1763128238529,-509.12715118,0.00024173,2]
[393954839,1763128238539,-501.61451828,0.00024173,2]
[393954840,1763128238549,-500.0,0.00024178,2]
[393954841,1763128238559,-500.43470923,0.000242,2]
[393954842,1763128238569,-8497.9884109,0.00024365,2]
[393954843,1763128238580,-25853.681145,0.00024365,2]
[393954844,1763128238591,-600.0,0.00024451,20]
[393954845,1763128238601,-500.0,0.00024452,2]
[393954846,1763128238611,-160.0,0.0002446,2]
[393954847,1763128238623,-1000.0,0.000245,2]
[393954848,1763128238633,-1000.0,0.00024521,2]
[393954849,1763128238644,-1000.0,0.00024721,2]
[393954850,1763128238654,-500.0,0.00024726,2]
[393954851,1763128238665,-2406.47,0.00024764,3]
[393954852,1763128238677,-1203.24,0.00024764,3]
[393954853,1763128238686,-1203.24,0.00024764,3]
[393954854,1763128238697,-502.13564581,0.00024773,2]
[393954855,1763128238708,-505.73670855,0.00024773,2]
[393954856,1763128238719,-632.42065062,0.00024773,2]
[393954857,1763128238729,-16744.33804731,0.00024774,2]
[393954858,1763128238739,-627.70313445,0.00024873,2]
[393954859,1763128238750,-500.0,0.00024873,2]
[393954860,1763128238767,-500.0,0.00024873,2]
[393954861,1763128238778,-59.1409358,0.00024873,2]
[393955234,1763128243580,-439.17891392,0.00023663,2]
[393955235,1763128243589,-600.0,0.00024851,20]
[393955236,1763128243599,-440.8590642,0.00024873,2]
[393955237,1763128243608,-501.72405648,0.00024873,2]
[393955238,1763128243617,-501.9409669,0.00024873,2]
[393955239,1763128243626,-412.11065633,0.00024873,2]
[393955240,1763128243635,-500.0,0.00024873,2]
[393955241,1763128243644,-500.0,0.00024873,2]
[393955242,1763128243653,-500.0,0.00024873,2]
[393955243,1763128243662,-500.0,0.00024873,2]
[393955244,1763128243671,-505.3268785,0.00024873,2]
[393955246,1763128243680,-579.97833016,0.00024873,2]
[393955247,1763128243689,-501.80705918,0.00024873,2]
[393955248,1763128243698,-500.0,0.00024873,2]
[393955249,1763128243707,-500.0,0.00024873,2]
[393955250,1763128243716,-252.27,0.0002489,10]
[393955251,1763128243726,-49205.35731272,0.000249,2]
[393955271,1763128291428,-167338.70428528,0.000249,2]
[393955272,1763128291443,-500.0,0.00025,2]
[393955273,1763128291456,-420.0,0.00025008,2]
[393955274,1763128291471,-1000.0,0.00025068,2]
[393955275,1763128291485,-206.69,0.00025167,2]
[393955276,1763128291499,-228.85208338,0.00025188,2]
[393955277,1763128291514,-1500.0,0.00025268,2]
[393955278,1763128291528,-255.27877903,0.00025273,2]
[393955279,1763128291546,-500.0,0.00025273,2]
[393955280,1763128291559,-500.0,0.00025274,2]
[393955281,1763128291574,-420.0,0.00025311,2]
[393955282,1763128291588,-502.04118686,0.00025421,2]
[393955283,1763128291603,-1000.0,0.00025421,2]
[393955284,1763128291619,-1000.0,0.00025421,2]
[393955285,1763128291802,-514.37580653,0.00025421,2]
[393955286,1763128291813,-330.99422104,0.00025421,2]
[393955287,1763128291823,-1004.43111576,0.00025421,2]
[393955288,1763128291833,-1000.0,0.00025421,2]
[393955289,1763128291843,-1096.0,0.000255,3]
[393955290,1763128291855,-362.98690802,0.00025548,2]
[393955291,1763128291864,-36090.676933,0.00025606,2]
[393955292,1763128291875,-508.85603202,0.00025816,2]
[393955293,1763128291889,-1500.0,0.00025968,2]
[393955294,1763128291900,-1500.0,0.00025968,2]
[393955295,1763128291910,-1500.0,0.00025968,2]
[393955296,1763128291920,-1225.60119952,0.00026103,2]
[393955297,1763128291931,-400.38245665,0.00026134,3]
[393955298,1763128291941,-172.905253,0.00026401,2]
[393955299,1763128291952,-1821.02387417,0.00026516,2]
[393955300,1763128291962,-2000.0,0.00026516,2]
[393955301,1763128291972,-1710.552712,0.00026516,2]
[393955302,1763128291982,-409.027755,0.00026676,2]
[393955303,1763128291992,-25853.681145,0.00026816,2]
[393955304,1763128292002,-742.18622267,0.00026823,2]
[393955305,1763128292012,-36090.676933,0.00026951,2]
[393955306,1763128292024,-2500.0,0.00027064,2]
[393955307,1763128292033,-742.18622267,0.00027122,2]
[393955308,1763128292048,-720.0,0.00027336,30]
[393955309,1763128292058,-394.8090703,0.00027364,2]
[393955310,1763128292068,-510.36,0.000274,2]
[393955311,1763128292079,-742.18622267,0.00027421,2]
[393955312,1763128292088,-587.0,0.00027467,2]
[393955313,1763128292098,-11983.84609655,0.000275,2]
[393955314,1763128292108,-3000.0,0.00027612,5]
[393955315,1763128292117,-2066.3532975,0.0002771,2]
[393955316,1763128292127,-742.18622267,0.0002772,2]
[393955317,1763128292137,-8497.9884109,0.00027739,2]
[393955318,1763128292146,-400.38245665,0.00028,10]
[393955319,1763128292156,-742.92840889,0.00028019,2]
[393955320,1763128292165,-1225.60119952,0.00028635,2]
[393955321,1763128292175,-539.0,0.00029,2]
[393955322,1763128292184,-25853.681145,0.00029268,2]
[393955323,1763128292195,-823.0,0.00029807,2]
[393955324,1763128292205,-864.0,0.0003007,30]
[393955325,1763128292214,-297.02361525,0.00030187,2]
[393955326,1763128292223,-8439.7368755,0.0003108,2]
[393955327,1763128292232,-8497.9884109,0.00031113,2]
[393955328,1763128292246,-1225.60119952,0.00031167,2]
[393955329,1763128292256,-2164.0,0.00031282,2]
[393955330,1763128292266,-629.0,0.00031282,2]
[393955331,1763128292276,-987.0,0.00031282,2]
[393955332,1763128292285,-151.0,0.000313,2]
[393955333,1763128292299,-2066.3532975,0.00031617,2]
[393955334,1763128292309,-25853.681145,0.00031719,2]
[393955335,1763128292318,-336.541438,0.00031883,2]
[393955336,1763128292328,-500.0,0.00032357,5]
[393955337,1763128292338,-510.36,0.000327,2]
[393955338,1763128292347,-4000.0,0.00032727,2]
[393955339,1763128292357,-168.0,0.00032755,2]
[393955340,1763128292367,-151.0,0.00032983,2]
[393955341,1763128292376,-151.0,0.00032983,2]
[393955342,1763128292385,-500.0,0.00032983,2]
[393955343,1763128292395,-500.0,0.00032983,2]
[393955344,1763128292404,-500.0,0.00032983,2]
[393955345,1763128292413,-500.0,0.00032983,2]
[393955346,1763128292423,-500.0,0.00032983,2]
[393955347,1763128292432,-500.0,0.00032983,2]
[393955348,1763128292441,-500.0,0.00032983,2]
[393955349,1763128292450,-155.46464644,0.00033,2]
[393955350,1763128292459,-8017.60601458,0.00033,2]
[393955351,1763128292468,-81087.80957758,0.0003301,3]
[393955352,1763128292477,-315.60771,0.0003301,31]
[393955353,1763128292487,-151.0,0.0003301,2]
[393955354,1763128292496,-236.40508137,0.0003301,2]
[393955355,1763128292505,-500.0,0.0003301,2]
[393955356,1763128292514,-500.0,0.0003301,2]
[393955357,1763128292523,-500.0,0.0003301,2]
[393955358,1763128292533,-500.0,0.0003301,2]
[393955359,1763128292547,-500.0,0.0003301,2]
[393955360,1763128292556,-500.0,0.0003301,2]
[393955361,1763128292565,-500.0,0.0003301,2]
[393955362,1763128292574,-198.48816271,0.00033038,2]
[393955363,1763128292584,-502.12150638,0.00033038,2]
[393955364,1763128292593,-500.0,0.00033038,2]
[393955365,1763128292602,-156.06193222,0.00033038,2]
[393955366,1763128292612,-500.0,0.00033038,2]
[393955367,1763128292621,-500.0,0.00033038,2]
[393955368,1763128292630,-500.0,0.00033038,2]
[393955369,1763128292639,-500.0,0.00033038,2]
[393955370,1763128292648,-500.0,0.00033065,2]
[393955371,1763128292657,-500.0,0.00033065,2]
[393955372,1763128292667,-500.0,0.00033065,2]
[393955373,1763128292676,-500.0,0.00033065,2]
[393955374,1763128292685,-500.0,0.00033065,2]
[393955375,1763128292695,-312.0,0.00033076,120]
[393955376,1763128292704,-1000.0,0.00033077,30]
[393955377,1763128292714,-168.8299291,0.00033093,2]
[393955378,1763128292724,-183.99699887,0.00033093,2]
[393955379,1763128292734,-500.0,0.00033093,2]
[393955380,1763128292743,-268.13823999,0.00033093,2]
[393955381,1763128292752,-500.0,0.00033093,2]
[393955382,1763128292761,-500.0,0.0003312,2]
[393955383,1763128292770,-500.0,0.0003312,2]
[393955384,1763128292780,-151.000003,0.00033147,2]
[393955385,1763128292789,-500.0,0.00033147,2]
[393955386,1763128292803,-500.0,0.00033147,2]
[393955387,1763128292813,-409.027755,0.00033165,2]
[393955388,1763128292823,-151.0,0.00033175,2]
[393955389,1763128292833,-168.0,0.00033487,2]
[393955390,1763128292843,-388.66,0.00033625,2]
[393955391,1763128292855,-168.0,0.00033652,2]
[393955392,1763128292864,-1225.60119952,0.00033699,2]
[393955393,1763128292874,-168.0,0.00033775,2]
[393955394,1763128292889,-168.0,0.0003388,2]
[393955395,1763128292900,-14526.64094216,0.00034,2]
[393955396,1763128292911,-1010.52209973,0.00034,2]
[393955397,1763128292920,-168.0,0.00034016,2]
[393955398,1763128292929,-2161.0,0.00034282,2]
[393955399,1763128292939,-625.0,0.00034282,2]
[393955400,1763128292947,-577.317,0.00034282,2]
[393955401,1763128292958,-168.0,0.00034346,2]
[393955402,1763128292969,-168.0,0.00034371,2]
[393955403,1763128292978,-8497.9884109,0.00034486,2]
[393955404,1763128292988,-5315.0,0.00034536,2]
[393955405,1763128292997,-5315.0,0.00034736,2]
[393955406,1763128293007,-168.0,0.00034855,2]
[393955407,1763128293016,-168.0,0.00034905,2]
[393955408,1763128293026,-168.0,0.0003507,2]
[393955409,1763128293035,-339.0,0.00035076,120]
[393955410,1763128293049,-510.36,0.000351,14]
[393955411,1763128293060,-5315.0,0.00035184,2]
[393955412,1763128293070,-168.0,0.00035391,2]
[393955413,1763128293080,-2066.3532975,0.00035523,2]
[393955414,1763128293090,-168.0,0.00035592,2]
[393955415,1763128293100,-5315.0,0.00035639,2]
[393955416,1763128293109,-168.0,0.00035939,2]
[393955417,1763128293119,-168.0,0.00035991,2]
[393955418,1763128293129,-168.0,0.00036097,2]
[393955419,1763128293139,-1225.60119952,0.00036231,2]
[393955420,1763128293148,-265.73855375,0.0003624,2]
[393955421,1763128293157,-1000.0,0.00036385,30]
[393955422,1763128293166,-244.0,0.00036385,30]
[393955423,1763128293176,-190.0,0.000364,3]
[393955424,1763128293185,-777.32,0.00036682,2]
[393955425,1763128293195,-366.0,0.00037076,120]
[393955427,1763128293204,-2540.50428314,0.00037691,2]